[Event "20th Dubai Open 2018"]
[Site "Dubai"]
[Date "2018.04.07"]
[Round "5"]
[White "Urazayev, Arystanbek"]
[Black "Minko, Dmitry"]
[Result "1-0"]
[ECO "C65"]
[WhiteElo "2331"]
[BlackElo "2145"]
[Annotator "NA"]
[PlyCount "115"]
[EventDate "2018.??.??"]
[EventType "swiss"]
[EventCountry "UAE"]
[SourceTitle "playchess.com"]
[Source "ChessBase"]
[SourceQuality "1"]
[TimeControl "5400+30"]

1. e4 {[%emt 0:00:00]} e5 {[%emt 0:00:08]} 2. Nf3 {[%emt 0:00:00]} Nc6 {[%emt 0:00:07]} 3. Bb5 {[%emt 0:00:00]} Nf6 {[%emt 0:00:08]} 4. d3 {[%emt 0:00:02]} Ne7 {[%emt 0:00:09]} 5. Bc4 {[%emt 0:03:08]} c6 {[%emt 0:00:29]} 6. Nc3 {[%emt 0:01:08]} Ng6 {[%emt 0:06:38]} 7. h4 {[%emt 0:15:52]} h5 {[%emt 0:01:57]} 8. Bg5 {[%emt 0:02:11]} d6 {[%emt 0:08:27]} 9. Qd2 {[%emt 0:02:48]} Be7 {[%emt 0:07:39]} 10. Bb3 {[%emt 0:01:04]} Qc7 {[%emt 0:18:45]} 11. Ne2 {[%emt 0:01:21]} Bg4 {[%emt 0:06:32]} 12. Ng3 {[%emt 0:03:49]} Qd7 {[%emt 0:02:48]} 13. Ng1 {[%emt 0:10:46]} d5 {[%emt 0:03:28]} 14. N1e2 $11 {[%emt 0:04:11]} Be6 {[%emt 0:10:59]} 15. Rd1 {[%emt 0:10:32]} O-O-O {[%emt 0:07:54]} 16. exd5 {[%emt 0:07:22]} Bxd5 {[%emt 0:01:03]} 17. Bxd5 {[%emt 0:03:13]} Nxd5 {[%emt 0:01:00]} 18. Bxe7 {[%emt 0:04:05]} Ndxe7 {[%emt 0:08:24]} 19. Qa5 {[%emt 0:05:31]} b6 {[%emt 0:00:40]} 20. Qa6+ {[%emt 0:00:32]} Kb8 {[%emt 0:00:22]} 21. Qc4 {[%emt 0:00:51]} Qd5 {[%emt 0:03:35]} 22. Qxd5 {[%emt 0:00:16]} cxd5 {[%emt 0:00:02]} 23. d4 {[%emt 0:03:35]} e4 {[%emt 0:01:19]} 24. Nf1 {[%emt 0:02:44]} Nf5 {[%emt 0:03:10]} 25. g3 {[%emt 0:00:30]} Rc8 {[%emt 0:00:29]} 26. c3 {[%emt 0:00:28]} Kc7 {[%emt 0:03:21]} 27. Ne3 {[%emt 0:00:32]} Nge7 {[%emt 0:00:25]} 28. Rf1 {[%emt 0:01:36]} Kd6 {[%emt 0:01:49]} 29. Nc2 {[%emt 0:02:34]} g6 {[%emt 0:00:49]} 30. Kd2 {[%emt 0:00:21]} b5 {[%emt 0:00:53]} 31. Ra1 {[%emt 0:02:45]} a5 {[%emt 0:01:03]} 32. a4 {[%emt 0:00:32]} Rb8 {[%emt 0:00:07]} 33. axb5 {[%emt 0:00:25]} Rxb5 {[%emt 0:00:01]} 34. b4 {[%emt 0:01:42]} Nc6 {[%emt 0:00:22]} 35. Na3 {[%emt 0:03:14]} Rb6 {[%emt 0:00:52]} 36. b5 {[%emt 0:00:35]} Na7 {[%emt 0:01:20]} 37. c4 {[%emt 0:00:12]} Rb7 {[%emt 0:00:01]} 38. c5+ {[%emt 0:01:06]} Ke7 {[%emt 0:00:02]} 39. Rfb1 {[%emt 0:03:01]} Rhb8 {[%emt 0:00:44]} 40. b6 {[%emt 0:01:47]} Nc6 {[%emt 0:00:01]} 41. Nb5 {[%emt 0:00:13]} Ra8 {[%emt 0:00:57]} 42. Ra4 {[%emt 0:00:49]} f6 {[%emt 0:00:55]} 43. Nf4 {[%emt 0:00:13]} Kf7 {[%emt 0:00:09]} 44. Nxd5 {[%emt 0:02:08]} Rd8 {[%emt 0:00:00]} 45. Ndc7 {[%emt 0:00:39]} Ncxd4 {[%emt 0:00:14]} 46. Nxd4 {[%emt 0:00:52]} Nxd4 {[%emt 0:01:18]} 47. Ke3 {[%emt 0:00:12]} Nc6 {[%emt 0:00:24]} 48. Rxe4 {[%emt 0:00:53]} Rd7 {[%emt 0:00:57]} 49. Nb5 {[%emt 0:00:42]} Rb8 {[%emt 0:00:40]} 50. Nd6+ {[%emt 0:00:08]} Kg7 {[%emt 0:00:39]} 51. f4 {[%emt 0:00:55]} Ne7 {[%emt 0:00:51]} 52. Kf3 {[%emt 0:00:36]} Nc6 {[%emt 0:00:28]} 53. Rbe1 {[%emt 0:00:28]} f5 {[%emt 0:00:34]} 54. Re8 {[%emt 0:00:31]} Rdd8 {[%emt 0:00:12]} 55. Rxd8 {[%emt 0:00:26]} Rxd8 {[%emt 0:00:02]} 56. Kf2 {[%emt 0:00:29]} a4 {[%emt 0:00:21]} 57. b7 {[%emt 0:00:50]} Nb4 {[%emt 0:00:27]} 58. Re8 {[%emt 0:00:13]} 1-0

[Event "20th Dubai Open 2018"]
[Site "Dubai"]
[Date "2018.04.07"]
[Round "5"]
[White "Abou El Zein, Eid Mahmoud"]
[Black "Padmini, Rout"]
[Result "0-1"]
[ECO "A46"]
[WhiteElo "2156"]
[BlackElo "2360"]
[Annotator "NA"]
[PlyCount "136"]
[EventDate "2018.??.??"]
[EventType "swiss"]
[EventCountry "UAE"]
[SourceTitle "playchess.com"]
[Source "ChessBase"]
[SourceQuality "1"]
[TimeControl "5400+30"]

1. d4 {[%emt 0:03:18]} Nf6 {[%emt 0:00:19]} 2. Nf3 {[%emt 0:00:16]} e6 {[%emt 0:01:30]} 3. e3 {[%emt 0:00:20]} d5 {[%emt 0:01:51]} 4. Nbd2 {[%emt 0:00:29]} b6 {[%emt 0:01:36]} 5. Ne5 {[%emt 0:02:47]} Bb7 {[%emt 0:00:36]} 6. Bd3 {[%emt 0:00:14]} Bd6 {[%emt 0:04:44]} 7. f4 {[%emt 0:00:07]} O-O {[%emt 0:00:23]} 8. Qf3 {[%emt 0:01:01]} Ba6 {[%emt 0:08:07]} 9. g4 {[%emt 0:20:02]} Bxd3 {[%emt 0:03:48]} 10. Nxd3 {[%emt 0:00:07]} Nc6 {[%emt 0:03:50]} 11. g5 {[%emt 0:07:15]} Nd7 {[%emt 0:00:46]} 12. h4 {[%emt 0:00:41]} Ne7 {[%emt 0:09:42]} 13. Nf1 {[%emt 0:00:39]} Nf5 {[%emt 0:03:56]} 14. Ng3 {[%emt 0:04:48]} Nxg3 {[%emt 0:03:18]} 15. Qxg3 {[%emt 0:00:06]} c5 {[%emt 0:05:35]} 16. c3 {[%emt 0:00:17]} f5 {[%emt 0:04:21]} 17. O-O {[%emt 0:07:16]} b5 $11 {[%emt 0:01:38]} 18. Bd2 {[%emt 0:09:11]} a5 {[%emt 0:03:29]} 19. Rfc1 {[%emt 0:06:43]} Qe7 {[%emt 0:02:39]} 20. Qf3 {[%emt 0:01:24]} Nb6 {[%emt 0:01:02]} 21. Be1 {[%emt 0:02:34]} c4 {[%emt 0:05:23]} 22. Nf2 {[%emt 0:03:43]} b4 {[%emt 0:01:44]} 23. Rab1 {[%emt 0:02:52]} a4 {[%emt 0:05:24]} 24. cxb4 {[%emt 0:03:06]} Bxb4 {[%emt 0:00:05]} 25. Bxb4 {[%emt 0:00:36]} Qxb4 {[%emt 0:00:02]} 26. Qd1 {[%emt 0:00:05]} Qd6 {[%emt 0:06:16]} 27. Rc3 {[%emt 0:01:11]} Rfb8 {[%emt 0:00:52]} 28. Qc2 {[%emt 0:00:42]} Qb4 {[%emt 0:02:22]} 29. a3 {[%emt 0:06:17]} Qe7 {[%emt 0:01:10]} 30. Nd1 {[%emt 0:00:10]} Nc8 {[%emt 0:00:42]} 31. Qe2 {[%emt 0:00:42]} Nd6 {[%emt 0:00:13]} 32. Rc2 {[%emt 0:00:42]} Ne4 {[%emt 0:12:26]} 33. Nc3 {[%emt 0:00:28]} Rb3 {[%emt 0:01:04]} 34. Nxe4 {[%emt 0:00:25]} fxe4 {[%emt 0:00:02]} 35. Rd1 {[%emt 0:00:22]} Rab8 {[%emt 0:00:27]} 36. Rdd2 {[%emt 0:00:35]} Qf7 {[%emt 0:02:15]} 37. Kf2 {[%emt 0:00:26]} Qf5 {[%emt 0:00:07]} 38. Kg3 {[%emt 0:00:39]} h5 {[%emt 0:00:53]} 39. Rc3 {[%emt 0:03:13]} Rxc3 {[%emt 0:04:12]} 40. bxc3 {[%emt 0:00:04]} Qf7 {[%emt 0:00:13]} 41. Rb2 {[%emt 0:00:31]} Rb3 {[%emt 0:00:20]} 42. Rxb3 {[%emt 0:00:04]} axb3 {[%emt 0:00:11]} 43. a4 {[%emt 0:00:22]} Qe8 {[%emt 0:01:44]} 44. Qd1 {[%emt 0:00:29]} Qxa4 {[%emt 0:00:32]} 45. Qxh5 {[%emt 0:00:06]} b2 {[%emt 0:00:17]} 46. g6 {[%emt 0:00:04]} b1=Q {[%emt 0:00:21]} 47. Qh7+ {[%emt 0:00:08]} Kf8 {[%emt 0:00:05]} 48. Qh8+ {[%emt 0:00:04]} Ke7 {[%emt 0:00:03]} 49. Qxg7+ {[%emt 0:00:03]} Kd6 {[%emt 0:01:43]} 50. Qf8+ {[%emt 0:00:51]} Kc7 {[%emt 0:00:06]} 51. g7 {[%emt 0:00:56]} Qg1+ {[%emt 0:00:23]} 52. Kh3 {[%emt 0:00:24]} Qxe3+ {[%emt 0:00:39]} 53. Kg4 {[%emt 0:00:24]} Qd1+ {[%emt 0:00:27]} 54. Kg5 {[%emt 0:00:32]} Qg3+ {[%emt 0:00:24]} 55. Kf6 {[%emt 0:00:42]} Qxf4+ {[%emt 0:00:50]} 56. Ke7 {[%emt 0:01:24]} Qd6+ {[%emt 0:00:31]} 57. Kf7 {[%emt 0:00:38]} Qf3+ {[%emt 0:00:07]} 58. Kg8 {[%emt 0:00:05]} Qdxf8+ {[%emt 0:00:43]} 59. gxf8=Q Qxf8+ {[%emt 0:00:15]} 60. Kxf8 {[%emt 0:00:08]} e3 {[%emt 0:00:04]} 61. h5 {[%emt 0:00:09]} e2 {[%emt 0:00:14]} 62. h6 {[%emt 0:00:02]} e1=Q {[%emt 0:00:07]} 63. h7 {[%emt 0:00:03]} Qh4 {[%emt 0:00:09]} 64. Kg7 {[%emt 0:00:07]} Qg5+ {[%emt 0:00:06]} 65. Kh8 {[%emt 0:00:09]} Qf6+ {[%emt 0:00:04]} 66. Kg8 {[%emt 0:00:03]} Qg6+ {[%emt 0:00:04]} 67. Kh8 {[%emt 0:00:02]} e5 {[%emt 0:00:11]} 68. dxe5 {[%emt 0:00:04]} Qf7 {[%emt 0:00:02]} 0-1

[Event "20th Dubai Open 2018"]
[Site "Dubai"]
[Date "2018.04.07"]
[Round "5"]
[White "Llopis De Aysa, Manuel"]
[Black "Kulkarni Bhakti"]
[Result "0-1"]
[ECO "D04"]
[WhiteElo "2147"]
[BlackElo "2317"]
[Annotator "NA"]
[PlyCount "156"]
[EventDate "2018.??.??"]
[EventType "swiss"]
[EventCountry "UAE"]
[SourceTitle "playchess.com"]
[Source "ChessBase"]
[SourceQuality "1"]
[TimeControl "5400+30"]

1. d4 {[%emt 0:00:00]} d5 {[%emt 0:02:44]} 2. Nf3 {[%emt 0:00:05]} Nf6 {[%emt 0:00:41]} 3. e3 {[%emt 0:00:21]} Bg4 {[%emt 0:03:08]} 4. h3 {[%emt 0:04:28]} Bxf3 {[%emt 0:01:35]} 5. Qxf3 {[%emt 0:00:08]} e6 {[%emt 0:00:27] D04: Colle System} 6. Bd3 {[%emt 0:11:34]} (6. c4 Bb4+ 7. Bd2 Bxd2+ 8. Nxd2 O-O 9. cxd5 exd5 10. Bd3 c6 11. O-O Qe7 12. Rfc1 Nbd7 13. Rc3 {0-1 (68) Bayer,B (2430)-Nisipeanu,L (2687) Austria 2017}) 6... c5 {[%emt 0:01:54]} 7. Bb5+ $146 {[%emt 0:14:29]} ({Predecessor:} 7. c3 Nc6 8. Nd2 Bd6 9. O-O O-O 10. Qe2 e5 11. dxc5 Bxc5 12. e4 Re8 13. exd5 Nxd5 {1-0 (59) Harmatosi,J (2252)-Heyl,T (2091) Budapest 2006}) 7... Nc6 {[%emt 0:01:15]} 8. O-O {[%emt 0:04:37] LiveBook: 592 Games} a6 {[%emt 0:03:46]} 9. Bxc6+ {[%emt 0:00:24]} bxc6 {[%emt 0:00:03]} 10. c4 {[%emt 0:02:13]} Be7 {[%emt 0:01:53]} 11. Nc3 {[%emt 0:02:31]} O-O {[%emt 0:00:31]} 12. Rd1 {[%emt 0:05:48]} Qc7 {[%emt 0:12:00]} 13. Qe2 {[%emt 0:02:04]} Rfd8 {[%emt 0:03:51]} 14. b3 {[%emt 0:01:07]} cxd4 {[%emt 0:06:16]} 15. exd4 {[%emt 0:01:05]} c5 {[%emt 0:02:32]} 16. dxc5 {[%emt 0:03:16]} Qxc5 {[%emt 0:03:51]} 17. Na4 {[%emt 0:05:10]} Qa7 {[%emt 0:09:35]} 18. cxd5 {[%emt 0:03:09]} Nxd5 {[%emt 0:01:21]} 19. Bb2 {[%emt 0:00:13]} Bf6 {[%emt 0:02:08]} 20. Bxf6 {[%emt 0:00:50]} Nxf6 {[%emt 0:01:29]} 21. Rxd8+ {[%emt 0:02:40]} Rxd8 {[%emt 0:00:05]} 22. Rc1 {[%emt 0:02:46]} h6 {[%emt 0:06:41]} 23. Rc5 {[%emt 0:11:57]} Qb7 {[%emt 0:04:56]} 24. Nc3 {[%emt 0:01:26]} Rd4 {[%emt 0:02:16]} 25. Rc4 {[%emt 0:04:53]} Qd7 {[%emt 0:02:08]} 26. Rxd4 {[%emt 0:00:40]} Qxd4 {[%emt 0:00:03]} 27. Qc2 {[%emt 0:00:41]} a5 {[%emt 0:02:10]} 28. g3 {[%emt 0:01:35]} h5 {[%emt 0:01:33]} 29. Ne2 {[%emt 0:04:47]} Qe5 {[%emt 0:02:41]} 30. h4 {[%emt 0:01:55]} Nd5 {[%emt 0:02:18]} 31. Qd2 {[%emt 0:01:27]} Qe4 {[%emt 0:02:57]} 32. Kh2 {[%emt 0:04:29]} g6 {[%emt 0:03:15]} 33. Kg1 {[%emt 0:00:56]} Kh7 {[%emt 0:00:19]} 34. Kh2 {[%emt 0:00:18]} e5 {[%emt 0:05:33]} 35. Kg1 {[%emt 0:02:20]} Nb4 {[%emt 0:01:08]} 36. Nc3 {[%emt 0:00:38]} Qd4 {[%emt 0:00:50]} 37. Qe3 {[%emt 0:00:51]} Nc2 {[%emt 0:01:54]} 38. Qf3 {[%emt 0:00:06]} Kg7 {[%emt 0:01:02]} 39. Ne4 {[%emt 0:00:33]} Qb6 {[%emt 0:02:10]} 40. Ng5 {[%emt 0:00:34]} f6 {[%emt 0:00:12]} 41. Ne4 {[%emt 0:00:08]} Qc6 {[%emt 0:00:40]} 42. Qe2 {[%emt 0:01:02]} Nd4 {[%emt 0:01:02]} 43. Qd3 {[%emt 0:00:04]} Qd5 {[%emt 0:01:21]} 44. Nd2 {[%emt 0:00:54]} f5 {[%emt 0:00:21]} 45. Kh2 {[%emt 0:00:33]} Qc5 {[%emt 0:02:20]} 46. Qc4 {[%emt 0:00:37]} Nxb3 {[%emt 0:00:29]} 47. Qxc5 {[%emt 0:00:15]} Nxc5 {[%emt 0:00:02]} 48. Nc4 {[%emt 0:00:10]} Nd3 {[%emt 0:01:12]} 49. Kg2 {[%emt 0:01:03]} a4 {[%emt 0:00:09]} 50. Kf1 {[%emt 0:00:28]} Kf6 {[%emt 0:00:07]} 51. Nb6 {[%emt 0:00:21]} a3 {[%emt 0:01:26]} 52. Nc4 {[%emt 0:00:26]} Nb4 {[%emt 0:00:08]} 53. Nxa3 {[%emt 0:00:04]} Nxa2 {[%emt 0:00:06]} 54. Nb5 {[%emt 0:00:53]} Nb4 {[%emt 0:01:09]} 55. Ke2 {[%emt 0:00:09]} Nd5 {[%emt 0:00:20]} 56. Nd6 {[%emt 0:00:20]} Ke6 {[%emt 0:00:33]} 57. Nc4 {[%emt 0:00:09]} Nb4 {[%emt 0:00:19]} 58. f3 {[%emt 0:00:40]} Kd5 {[%emt 0:00:26]} 59. Nb6+ {[%emt 0:00:31]} Kd4 {[%emt 0:00:44]} 60. Nd7 {[%emt 0:00:30]} Nd5 {[%emt 0:00:04]} 61. Nf8 {[%emt 0:00:51]} Ne7 {[%emt 0:01:09]} 62. Ne6+ {[%emt 0:00:24]} Kd5 {[%emt 0:00:11]} 63. Nf8 {[%emt 0:00:58]} f4 {[%emt 0:00:53]} 64. gxf4 {[%emt 0:00:48]} exf4 {[%emt 0:00:02]} 65. Kd3 {[%emt 0:00:21]} Ke5 {[%emt 0:00:05]} 66. Ke2 {[%emt 0:00:14]} Kf6 {[%emt 0:00:50]} 67. Kf2 {[%emt 0:00:57]} Nf5 {[%emt 0:00:07]} 68. Nd7+ {[%emt 0:00:10]} Ke7 $19 {[%emt 0:00:24]} 69. Nc5 {[%emt 0:00:36]} Nxh4 {[%emt 0:00:04]} 70. Nd3 {[%emt 0:00:30]} g5 {[%emt 0:00:03]} 71. Nc5 {[%emt 0:00:19]} Kf6 {[%emt 0:00:14]} 72. Nd3 {[%emt 0:00:47]} Kf5 {[%emt 0:00:06]} 73. Nb4 {[%emt 0:00:20]} g4 {[%emt 0:00:11]} 74. fxg4+ {[%emt 0:00:07]} hxg4 {[%emt 0:00:09]} 75. Nd3 {[%emt 0:00:49]} g3+ {[%emt 0:00:07]} 76. Kf1 {[%emt 0:00:17]} f3 {[%emt 0:00:15]} 77. Nc5 {[%emt 0:00:50]} Ng6 {[%emt 0:00:17]} 78. Kg1 {[%emt 0:00:46]} Nf4 {[%emt 0:00:06]} 0-1

[Event "20th Dubai Open 2018"]
[Site "Dubai"]
[Date "2018.04.07"]
[Round "6"]
[White "Zhu, Yilun"]
[Black "Tania, Sachdev"]
[Result "1-0"]
[ECO "C91"]
[WhiteElo "2195"]
[BlackElo "2407"]
[Annotator "NA"]
[PlyCount "65"]
[EventDate "2018.??.??"]
[EventType "swiss"]
[EventCountry "UAE"]
[SourceTitle "playchess.com"]
[Source "ChessBase"]
[SourceQuality "1"]
[TimeControl "5400+30"]

1. e4 {[%emt 0:00:00]} e5 {[%emt 0:01:45]} 2. Nf3 {[%emt 0:00:00]} Nc6 {[%emt 0:00:04]} 3. Bb5 {[%emt 0:00:01]} a6 {[%emt 0:00:06]} 4. Ba4 {[%emt 0:00:03]} Nf6 {[%emt 0:00:26]} 5. O-O {[%emt 0:00:07]} b5 {[%emt 0:00:06]} 6. Bb3 {[%emt 0:00:03]} Be7 {[%emt 0:00:08]} 7. Re1 {[%emt 0:00:15]} d6 {[%emt 0:00:49]} 8. c3 {[%emt 0:00:13]} O-O {[%emt 0:00:12]} 9. d4 {[%emt 0:00:20]} Bg4 {[%emt 0:03:31]} 10. Be3 {[%emt 0:00:07]} exd4 {[%emt 0:11:17]} 11. cxd4 {[%emt 0:00:09]} Na5 {[%emt 0:05:15]} 12. Bc2 {[%emt 0:00:05]} d5 {[%emt 0:11:13]} 13. e5 {[%emt 0:02:57]} Ne4 {[%emt 0:00:37]} 14. Nbd2 {[%emt 0:12:18]} Nxd2 {[%emt 0:07:51]} 15. Qxd2 {[%emt 0:00:32]} Nc4 {[%emt 0:00:15]} 16. Qd3 {[%emt 0:00:06]} g6 {[%emt 0:00:04]} 17. Bh6 {[%emt 0:00:44]} Re8 {[%emt 0:02:01]} 18. b3 {[%emt 0:10:03]} Na3 {[%emt 0:00:57]} 19. Bd1 {[%emt 0:00:06]} c5 {[%emt 0:11:22]} 20. dxc5 {[%emt 0:00:54]} Bxc5 {[%emt 0:00:04]} 21. Rc1 {[%emt 0:29:08]} Bf5 {[%emt 0:19:49]} 22. Qd2 {[%emt 0:01:06]} Qb6 {[%emt 0:13:32]} 23. Qb2 {[%emt 0:06:55]} Bb4 {[%emt 0:05:57]} 24. e6 {[%emt 0:02:40]} d4 {[%emt 0:00:01]} 25. exf7+ {[%emt 0:00:04]} Kxf7 {[%emt 0:00:02]} 26. Ng5+ {[%emt 0:00:16]} Kg8 {[%emt 0:00:43]} 27. Bf3 {[%emt 0:02:55]} Bxe1 {[%emt 0:01:21]} 28. Bd5+ {[%emt 0:00:08]} Kh8 {[%emt 0:01:56]} 29. Nf7+ {[%emt 0:19:55]} Kg8 {[%emt 0:00:02]} 30. Ng5+ {[%emt 0:00:08]} Kh8 {[%emt 0:00:01]} 31. Rc7 {[%emt 0:03:47]} Be6 {[%emt 0:03:10]} 32. Nxe6 {[%emt 0:00:19]} Rxe6 {[%emt 0:00:43]} 33. Bxe6 {[%emt 0:00:16]} 1-0

[Event "20th Dubai Open 2018"]
[Site "Dubai"]
[Date "2018.04.07"]
[Round "6"]
[White "Ma, Lin"]
[Black "Rajdeep Sarkar"]
[Result "0-1"]
[ECO "A04"]
[WhiteElo "2156"]
[BlackElo "2393"]
[Annotator "NA"]
[PlyCount "78"]
[EventDate "2018.??.??"]
[EventType "swiss"]
[EventCountry "UAE"]
[SourceTitle "playchess.com"]
[Source "ChessBase"]
[SourceQuality "1"]
[TimeControl "5400+30"]

1. Nf3 {[%emt 0:00:23]} e6 {[%emt 0:00:06]} 2. g3 {[%emt 0:00:36]} b5 {[%emt 0:00:06]} 3. Bg2 {[%emt 0:00:54]} Bb7 {[%emt 0:00:06]} 4. d4 {[%emt 0:00:36]} Nf6 {[%emt 0:00:41]} 5. O-O {[%emt 0:00:08]} c5 {[%emt 0:00:36]} 6. b3 {[%emt 0:03:01]} cxd4 {[%emt 0:04:02]} 7. Nxd4 {[%emt 0:01:11]} Bxg2 {[%emt 0:00:20]} 8. Kxg2 {[%emt 0:00:04]} Qb6 {[%emt 0:00:27]} 9. Bb2 {[%emt 0:06:03]} Nc6 {[%emt 0:04:03]} 10. e3 {[%emt 0:05:54]} Be7 {[%emt 0:03:47]} 11. Nd2 {[%emt 0:01:13]} d5 {[%emt 0:04:41]} 12. Qe2 {[%emt 0:11:24]} a6 {[%emt 0:00:45]} 13. N2f3 {[%emt 0:07:56]} O-O {[%emt 0:02:36]} 14. a4 {[%emt 0:06:09]} b4 {[%emt 0:01:21]} 15. c3 {[%emt 0:03:34]} bxc3 {[%emt 0:08:35]} 16. Bxc3 {[%emt 0:00:47]} Ne4 {[%emt 0:02:39]} 17. Nxc6 {[%emt 0:09:01]} Qxc6 {[%emt 0:00:17]} 18. Bd4 {[%emt 0:00:04]} Qb7 {[%emt 0:03:21]} 19. Qd3 {[%emt 0:04:30]} f6 {[%emt 0:09:12]} 20. Rac1 {[%emt 0:07:11]} e5 {[%emt 0:03:32]} 21. Bb6 {[%emt 0:02:11]} Rfc8 {[%emt 0:14:24]} 22. Rfd1 {[%emt 0:07:57]} Bb4 {[%emt 0:12:19]} 23. Qxd5+ {[%emt 0:08:56]} Qxd5 {[%emt 0:00:08]} 24. Rxc8+ {[%emt 0:00:04]} Rxc8 {[%emt 0:00:02]} 25. Rxd5 {[%emt 0:00:04]} Rc2 {[%emt 0:00:02]} 26. Kg1 {[%emt 0:00:13]} Rxf2 {[%emt 0:03:12]} 27. Nd4 {[%emt 0:01:03]} Rb2 {[%emt 0:07:58]} 28. Rd8+ {[%emt 0:04:22]} Kf7 {[%emt 0:00:09]} 29. Rd7+ {[%emt 0:00:45]} Kg6 {[%emt 0:03:35]} 30. Nc6 {[%emt 0:03:17]} Bc3 {[%emt 0:05:19]} 31. a5 {[%emt 0:05:10]} Ng5 {[%emt 0:02:31]} 32. Ne7+ {[%emt 0:00:34]} Kh5 {[%emt 0:00:15]} 33. Nd5 {[%emt 0:00:36]} Nf3+ {[%emt 0:01:41]} 34. Kf1 {[%emt 0:00:03]} Nxh2+ {[%emt 0:00:04]} 35. Kg1 {[%emt 0:00:03]} Be1 {[%emt 0:03:09]} 36. e4 {[%emt 0:01:24]} Kg4 {[%emt 0:00:41]} 37. Rxg7+ {[%emt 0:00:36]} Kf3 {[%emt 0:00:04]} 38. Rf7 {[%emt 0:00:30]} Ng4 {[%emt 0:00:12]} 39. Nxf6 {[%emt 0:00:27]} Bf2+ {[%emt 0:00:06]} 0-1

[Event "20th Dubai Open 2018"]
[Site "Dubai"]
[Date "2018.04.08"]
[Round "7"]
[White "Tania, Sachdev"]
[Black "Minko, Dmitry"]
[Result "1-0"]
[ECO "D37"]
[WhiteElo "2407"]
[BlackElo "2145"]
[Annotator "NA RC"]
[PlyCount "63"]
[EventDate "2018.??.??"]
[EventType "swiss"]
[EventCountry "UAE"]
[SourceTitle "playchess.com"]
[Source "ChessBase"]
[SourceQuality "1"]
[TimeControl "5400+30"]

1. d4 {[%emt 0:00:00]} Nf6 {[%emt 0:00:16]} 2. c4 {[%emt 0:00:00]} e6 {[%emt 0:00:08]} 3. Nf3 {[%emt 0:00:00]} d5 {[%emt 0:00:13]} 4. Nc3 {[%emt 0:00:00]} Be7 {[%emt 0:01:01]} 5. Qc2 {[%emt 0:00:22]} O-O {[%emt 0:01:07]} 6. cxd5 {[%emt 0:00:10]} exd5 {[%emt 0:00:10]} 7. Bf4 {[%emt 0:00:08]} c6 {[%emt 0:02:13] LiveBook: 31 Games} 8. h3 {[%emt 0:00:19]} Nbd7 {[%emt 0:00:26]} 9. e3 {[%emt 0:00:06]} Re8 {[%emt 0:00:05]} 10. Bd3 {[%emt 0:00:21]} Nf8 {[%emt 0:00:08]} 11. O-O-O {[%emt 0:00:17]} a5 {[%emt 0:00:09]} 12. Kb1 {[%emt 0:01:07]} a4 {[%emt 0:00:11]} 13. g4 {[%emt 0:05:40]} a3 {[%emt 0:00:32]} 14. b3 {[%emt 0:00:02]} Bb4 {[%emt 0:00:52]} 15. Ne5 $11 {[%emt 0:03:56]} N6d7 {[%emt 0:01:38]} 16. Bg3 {[%emt 0:04:18]} Nxe5 {[%emt 0:02:24]} 17. dxe5 {[%emt 0:01:24]} Ra5 {[%emt 0:03:05]} 18. Na4 {[%emt 0:03:24]} Qe7 {[%emt 0:23:13]} 19. Rc1 {[%emt 0:10:17]} c5 {[%emt 0:08:23]} 20. Nc3 {[%emt 0:08:18]} Be6 {[%emt 0:01:25]} 21. Ka1 {[%emt 0:19:11]} c4 {[%emt 0:12:07]} 22. bxc4 {[%emt 0:00:05]} dxc4 {[%emt 0:00:50]} 23. Be4 {[%emt 0:00:25]} Rd8 {[%emt 0:10:44]} 24. Rhd1 {[%emt 0:03:11]} Bxc3+ {[%emt 0:04:05]} 25. Qxc3 {[%emt 0:00:08]} Rxd1 {[%emt 0:00:06]} 26. Rxd1 {[%emt 0:00:03]} Rb5 {[%emt 0:05:05]} 27. f4 {[%emt 0:02:19]} Rb2 {[%emt 0:04:03]} 28. f5 {[%emt 0:02:41]} Bd7 {[%emt 0:00:01]} 29. e6 {[%emt 0:03:22]} fxe6 {[%emt 0:18:09]} 30. Bd6 {[%emt 0:00:36]} Qf6 {[%emt 0:00:31]} 31. Qxf6 {[%emt 0:00:59]} gxf6 {[%emt 0:00:01]} 32. Bxa3 {[%emt 0:02:38]} 1-0

[Event "20th Dubai Open 2018"]
[Site "Dubai"]
[Date "2018.04.09"]
[Round "8"]
[White "Arjun, Kalyan"]
[Black "Priyanka Nutakki"]
[Result "1-0"]
[ECO "C18"]
[WhiteElo "2397"]
[BlackElo "1957"]
[Annotator "NA RC"]
[PlyCount "73"]
[EventDate "2018.??.??"]
[EventType "swiss"]
[EventCountry "UAE"]
[SourceTitle "playchess.com"]
[Source "ChessBase"]
[SourceQuality "1"]
[TimeControl "5400+30"]

1. e4 {[%emt 0:00:00]} e6 {[%emt 0:00:06]} 2. d4 {[%emt 0:00:00]} d5 {[%emt 0:00:06]} 3. Nc3 {[%emt 0:00:00]} Bb4 {[%emt 0:00:05]} 4. e5 {[%emt 0:00:05]} c5 {[%emt 0:00:06]} 5. a3 {[%emt 0:00:03]} Bxc3+ {[%emt 0:00:05]} 6. bxc3 {[%emt 0:00:03]} Ne7 {[%emt 0:00:06]} 7. Qg4 {[%emt 0:00:06]} Qc7 {[%emt 0:00:05]} 8. Bd3 {[%emt 0:00:09]} cxd4 {[%emt 0:00:35]} 9. Ne2 {[%emt 0:00:12]} dxc3 {[%emt 0:00:16]} 10. Qxg7 {[%emt 0:00:11]} Rg8 {[%emt 0:00:05]} 11. Qxh7 {[%emt 0:00:05]} Qxe5 {[%emt 0:00:08] C18: French: 3 Nc3 Bb4: Main line: 7 h4 and 7 Qg4} 12. h4 {[%emt 0:00:06]} (12. Bf4 Qf6 13. h4 Rxg2 14. Kf1 Rg8 15. Rg1 Rh8 16. Bg5 Rxh7 17. Bxf6 Rh6 18. Bg5 Rh8 19. Bf6 Rh6 20. Bg5 Rh8 21. Bf6 {½-½ (21) Leko,P (2728)-Shirov,A (2713) Saratov 2011}) 12... Nd7 {[%emt 0:00:04]} 13. Bf4 {[%emt 0:00:30]} Qf6 {[%emt 0:00:15]} 14. Bg5 {[%emt 0:00:12]} Qh8 {[%emt 0:00:08]} 15. Qxh8 {[%emt 0:00:08]} Rxh8 {[%emt 0:00:02]} 16. Nxc3 {[%emt 0:00:08]} a6 {[%emt 0:00:06]} 17. O-O-O {[%emt 0:00:46]} f6 {[%emt 0:00:40]} 18. Be3 {[%emt 0:00:12]} Kf7 {[%emt 0:06:06]} 19. h5 $146 {[%emt 0:05:50]} ({Find the theoretical novelty and annotate with similar games:} 19. f4) 19... Ne5 {[%emt 0:05:29]} 20. Be2 {[%emt 0:01:59]} b5 {[%emt 0:14:36]} 21. f4 {[%emt 0:06:14]} Nc4 {[%emt 0:00:23]} 22. Bxc4 {[%emt 0:22:16]} bxc4 {[%emt 0:05:07]} 23. Bc5 {[%emt 0:04:32]} Bb7 {[%emt 0:05:15]} 24. Ne4 $14 {[%emt 0:01:03]} Nf5 {[%emt 0:34:12]} 25. g4 {[%emt 0:02:58]} Bc8 {[%emt 0:00:04]} 26. Nc3 {[%emt 0:04:59]} Nh6 {[%emt 0:05:57]} 27. Rhg1 {[%emt 0:09:57]} Rg8 {[%emt 0:08:41]} 28. g5 {[%emt 0:00:37]} Nf5 {[%emt 0:00:02]} 29. Ne2 {[%emt 0:06:22]} Bd7 {[%emt 0:12:11]} 30. Nd4 {[%emt 0:00:59]} Rh8 {[%emt 0:03:31]} 31. Nxf5 {[%emt 0:00:13]} exf5 {[%emt 0:00:04]} 32. Rxd5 {[%emt 0:00:20]} Be6 {[%emt 0:00:42]} 33. Rd6 {[%emt 0:00:06]} fxg5 {[%emt 0:00:46]} 34. fxg5 {[%emt 0:00:31]} Rxh5 {[%emt 0:00:37]} 35. g6+ {[%emt 0:00:11]} Kf6 {[%emt 0:00:05]} 36. Re1 {[%emt 0:00:34]} Re8 {[%emt 0:01:02]} 37. Bd4+ {[%emt 0:00:04]} 1-0